[Event "*** SCC Grand Prix: Titled Tuesday Blitz"]
[Site "Chess.com"]
[Date "2020.09.08"]
[Round "4"]
[White "uthoang"]
[Black "geordie_derraugh"]
[Result "1-0"]
[WhiteElo "2272"]
[BlackElo "2399"]
[TimeControl "180+1"]
[EndTime "10:38:16 PDT"]
[Termination "uthoang won by resignation"]

1. d4 {[%clk 0:03:00.9]} 1... Nf6 {[%clk 0:02:59.7]} 2. Nf3 {[%clk 0:03:00.9]}
2... e6 {[%clk 0:02:59.3]} 3. g3 {[%clk 0:03:00.1]} 3... d5 {[%clk 0:02:56.1]}
4. Bg2 {[%clk 0:03:00.6]} 4... g6 {[%clk 0:02:55]} 5. O-O {[%clk 0:03:00.6]}
5... Bg7 {[%clk 0:02:55]} 6. b3 {[%clk 0:03:01.2]} 6... O-O {[%clk 0:02:55.2]}
7. Bb2 {[%clk 0:03:01.8]} 7... c5 {[%clk 0:02:55.8]} 8. Nbd2 {[%clk 0:03:01.4]}
8... Nc6 {[%clk 0:02:54.8]} 9. e3 {[%clk 0:02:55.4]} 9... Ne4 {[%clk 0:02:47.7]}
10. c3 {[%clk 0:02:42.2]} 10... Nxd2 {[%clk 0:02:12.1]} 11. Qxd2 {[%clk
0:02:36.1]} 11... Qb6 {[%clk 0:02:07.6]} 12. Rfd1 {[%clk 0:02:26]} 12... Bd7
{[%clk 0:02:06.8]} 13. Rac1 {[%clk 0:02:18.3]} 13... a5 {[%clk 0:01:54.3]} 14.
dxc5 {[%clk 0:02:13.6]} 14... Qxc5 {[%clk 0:01:52.7]} 15. c4 {[%clk 0:02:14.1]}
15... Qb4 {[%clk 0:00:46.8]} 16. Bxg7 {[%clk 0:02:08.2]} 16... Qxd2 {[%clk
0:00:46.4]} 17. Nxd2 {[%clk 0:01:53.8]} 17... Kxg7 {[%clk 0:00:46.6]} 18. cxd5
{[%clk 0:01:54.3]} 18... exd5 {[%clk 0:00:45.3]} 19. Bxd5 {[%clk 0:01:55.2]}
19... Nb4 {[%clk 0:00:31.1]} 20. Bxb7 {[%clk 0:01:49.4]} 20... Rab8 {[%clk
0:00:31.3]} 21. Bg2 {[%clk 0:01:45.2]} 21... Nxa2 {[%clk 0:00:29.1]} 22. Rc7
{[%clk 0:01:43]} 22... Be6 {[%clk 0:00:28.3]} 23. Ra7 {[%clk 0:01:37.7]} 23...
Rb5 {[%clk 0:00:23.7]} 24. Ra1 {[%clk 0:01:32.7]} 24... Nc3 {[%clk 0:00:14.5]}
25. R7xa5 {[%clk 0:01:31.3]} 25... Rb4 {[%clk 0:00:14.9]} 26. Rc5 {[%clk
0:01:27.9]} 26... Nd5 {[%clk 0:00:11.4]} 27. Bxd5 {[%clk 0:01:27.4]} 1-0

[Event "*** SCC Grand Prix: Titled Tuesday Blitz"]
[Site "Chess.com"]
[Date "2020.09.08"]
[Round "4"]
[White "leejunhyeok"]
[Black "RobPeresian"]
[Result "0-1"]
[WhiteElo "2645"]
[BlackElo "2366"]
[TimeControl "180+1"]
[EndTime "10:38:19 PDT"]
[Termination "RobPeresian won by resignation"]

1. e4 {[%clk 0:02:51.6]} 1... e5 {[%clk 0:02:59.5]} 2. Nf3 {[%clk 0:02:50.9]}
2... Nc6 {[%clk 0:02:59.2]} 3. d4 {[%clk 0:02:50.6]} 3... exd4 {[%clk
0:02:58.9]} 4. Nxd4 {[%clk 0:02:51.5]} 4... Nf6 {[%clk 0:02:58.1]} 5. Nxc6
{[%clk 0:02:51.6]} 5... bxc6 {[%clk 0:02:57.9]} 6. Bd3 {[%clk 0:02:51.9]} 6...
d5 {[%clk 0:02:57.3]} 7. exd5 {[%clk 0:02:51]} 7... cxd5 {[%clk 0:02:57.5]} 8.
O-O {[%clk 0:02:51.4]} 8... Be7 {[%clk 0:02:46.7]} 9. c4 {[%clk 0:02:51.2]} 9...
O-O {[%clk 0:02:34.6]} 10. cxd5 {[%clk 0:02:51.3]} 10... Nxd5 {[%clk 0:02:19.6]}
11. Be4 {[%clk 0:02:37.7]} 11... c6 {[%clk 0:02:18]} 12. Re1 {[%clk 0:02:34.1]}
12... Be6 {[%clk 0:02:15.3]} 13. Qc2 {[%clk 0:02:25.6]} 13... g6 {[%clk
0:02:11.6]} 14. Bh6 {[%clk 0:02:23.1]} 14... Re8 {[%clk 0:02:07.5]} 15. Qxc6
{[%clk 0:02:11.7]} 15... Bf6 {[%clk 0:02:06.8]} 16. Nc3 {[%clk 0:02:06.4]} 16...
Rc8 {[%clk 0:02:04.7]} 17. Qa4 {[%clk 0:01:30.6]} 17... Nxc3 {[%clk 0:02:03.3]}
18. bxc3 {[%clk 0:01:30.7]} 18... Bxc3 {[%clk 0:02:00.8]} 19. Rad1 {[%clk
0:01:29.1]} 19... Qh4 {[%clk 0:01:54.7]} 20. Bd2 {[%clk 0:01:15.3]} 20... Bxd2
{[%clk 0:01:50.3]} 21. Rxd2 {[%clk 0:01:15.6]} 21... Bf5 {[%clk 0:01:46.4]} 22.
Rd4 {[%clk 0:00:39.9]} 22... Rxe4 {[%clk 0:01:35.7]} 23. Rdxe4 {[%clk
0:00:38.6]} 23... Qxe4 {[%clk 0:01:30.7]} 24. Qa5 {[%clk 0:00:21.1]} 24... Qd4
{[%clk 0:01:23]} 25. h3 {[%clk 0:00:19.3]} 25... Rc2 {[%clk 0:01:17.6]} 26. Rf1
{[%clk 0:00:09.5]} 26... Bd3 {[%clk 0:01:17.5]} 0-1

[Event "*** SCC Grand Prix: Titled Tuesday Blitz"]
[Site "Chess.com"]
[Date "2020.09.08"]
[Round "4"]
[White "BogdanDeac"]
[Black "Sanyura"]
[Result "1-0"]
[WhiteElo "2921"]
[BlackElo "2545"]
[TimeControl "180+1"]
[EndTime "10:38:20 PDT"]
[Termination "BogdanDeac won by resignation"]

1. e4 {[%clk 0:03:00.9]} 1... c6 {[%clk 0:02:57.9]} 2. Nf3 {[%clk 0:03:00.5]}
2... d5 {[%clk 0:02:58.3]} 3. d3 {[%clk 0:03:01.1]} 3... dxe4 {[%clk 0:02:56.3]}
4. dxe4 {[%clk 0:03:00.1]} 4... Qxd1+ {[%clk 0:02:57.2]} 5. Kxd1 {[%clk
0:03:00.8]} 5... Nd7 {[%clk 0:02:57.7]} 6. Nbd2 {[%clk 0:02:59.4]} 6... Ngf6
{[%clk 0:01:55]} 7. Ne1 {[%clk 0:02:59]} 7... g6 {[%clk 0:01:48.6]} 8. Nd3
{[%clk 0:02:55.6]} 8... Bg7 {[%clk 0:01:48.6]} 9. f3 {[%clk 0:02:55.1]} 9... O-O
{[%clk 0:01:48.7]} 10. a4 {[%clk 0:02:54.9]} 10... Nh5 {[%clk 0:01:48.7]} 11. c3
{[%clk 0:02:52.3]} 11... Ne5 {[%clk 0:01:37.2]} 12. Kc2 {[%clk 0:02:52]} 12...
f5 {[%clk 0:01:36.3]} 13. Nxe5 {[%clk 0:02:34.5]} 13... Bxe5 {[%clk 0:01:35.4]}
14. Nc4 {[%clk 0:02:35]} 14... Bg7 {[%clk 0:01:29.1]} 15. Bd3 {[%clk 0:02:33]}
15... Be6 {[%clk 0:01:24.9]} 16. exf5 {[%clk 0:02:28.1]} 16... gxf5 {[%clk
0:01:23.6]} 17. Re1 {[%clk 0:02:26.6]} 17... Kf7 {[%clk 0:00:55.2]} 18. Ne5+
{[%clk 0:02:23.4]} 18... Bxe5 {[%clk 0:00:54.6]} 19. Rxe5 {[%clk 0:02:23.9]}
19... Rg8 {[%clk 0:00:41.4]} 20. g4 {[%clk 0:02:17.1]} 20... Kf6 {[%clk
0:00:31.4]} 21. Rxe6+ {[%clk 0:02:12.3]} 21... Kxe6 {[%clk 0:00:28.5]} 22. Bc4+
{[%clk 0:02:12.2]} 22... Kf6 {[%clk 0:00:27.5]} 23. Bxg8 {[%clk 0:02:12.2]}
23... Rxg8 {[%clk 0:00:28.3]} 24. gxh5 {[%clk 0:02:12.4]} 24... Rg2+ {[%clk
0:00:27.1]} 25. Kd3 {[%clk 0:02:10.3]} 25... Rxh2 {[%clk 0:00:26.8]} 26. Be3
{[%clk 0:02:10.1]} 26... e5 {[%clk 0:00:24.9]} 27. Bxa7 {[%clk 0:02:08.1]} 27...
Rxb2 {[%clk 0:00:24.2]} 28. Re1 {[%clk 0:02:05.6]} 28... Ra2 {[%clk 0:00:23.3]}
29. Bb8 {[%clk 0:02:05.3]} 29... Rxa4 {[%clk 0:00:21.1]} 30. Bxe5+ {[%clk
0:02:04.2]} 30... Kg5 {[%clk 0:00:21.3]} 31. Rg1+ {[%clk 0:01:59.3]} 31... Kxh5
{[%clk 0:00:20.7]} 32. Rg7 {[%clk 0:01:59.9]} 32... b5 {[%clk 0:00:19.6]} 33.
Rxh7+ {[%clk 0:01:59.6]} 33... Kg5 {[%clk 0:00:17.5]} 34. Rg7+ {[%clk
0:01:59.3]} 34... Kh6 {[%clk 0:00:17.2]} 35. Rc7 {[%clk 0:01:49.4]} 35... Rc4
{[%clk 0:00:16.7]} 36. Rd7 {[%clk 0:01:49.4]} 36... Kg5 {[%clk 0:00:16.3]} 37.
Rd4 {[%clk 0:01:49.2]} 37... Rc5 {[%clk 0:00:14]} 38. Bd6 {[%clk 0:01:49.3]} 1-0

[Event "*** SCC Grand Prix: Titled Tuesday Blitz"]
[Site "Chess.com"]
[Date "2020.09.08"]
[Round "4"]
[White "ShahMatKanal"]
[Black "bascheyaro"]
[Result "0-1"]
[WhiteElo "2542"]
[BlackElo "2747"]
[TimeControl "180+1"]
[EndTime "10:38:29 PDT"]
[Termination "bascheyaro won by resignation"]

1. d4 {[%clk 0:03:00.9]} 1... d5 {[%clk 0:02:53.3]} 2. c4 {[%clk 0:02:56.7]}
2... c6 {[%clk 0:02:53.3]} 3. Nf3 {[%clk 0:02:55.8]} 3... Nf6 {[%clk 0:02:53.5]}
4. e3 {[%clk 0:02:52.8]} 4... Bf5 {[%clk 0:02:53.5]} 5. Bd3 {[%clk 0:02:47.5]}
5... Bg6 {[%clk 0:02:52.7]} 6. Nc3 {[%clk 0:02:43.1]} 6... e6 {[%clk 0:02:52.9]}
7. Ne5 {[%clk 0:02:41]} 7... Nbd7 {[%clk 0:02:52.1]} 8. Nxg6 {[%clk 0:02:29.3]}
8... hxg6 {[%clk 0:02:51.8]} 9. cxd5 {[%clk 0:02:07.7]} 9... exd5 {[%clk
0:02:46.6]} 10. Qf3 {[%clk 0:02:01.6]} 10... Bd6 {[%clk 0:02:43.9]} 11. Bd2
{[%clk 0:01:58.5]} 11... Qe7 {[%clk 0:02:39.7]} 12. O-O-O {[%clk 0:01:54.1]}
12... O-O-O {[%clk 0:02:39.5]} 13. Kb1 {[%clk 0:01:50.2]} 13... Kb8 {[%clk
0:02:39.1]} 14. h3 {[%clk 0:01:45]} 14... Bb4 {[%clk 0:02:33.5]} 15. Rc1 {[%clk
0:01:43]} 15... Rde8 {[%clk 0:02:29.7]} 16. Rhd1 {[%clk 0:01:41.9]} 16... Bxc3
{[%clk 0:02:27.2]} 17. Bxc3 {[%clk 0:01:39.9]} 17... Ne4 {[%clk 0:02:27.5]} 18.
Bxe4 {[%clk 0:01:33.4]} 18... Qxe4+ {[%clk 0:02:27]} 19. Qxe4 {[%clk 0:01:29.7]}
19... Rxe4 {[%clk 0:02:27.9]} 20. Bb4 {[%clk 0:01:21.6]} 20... Kc7 {[%clk
0:02:26]} 21. Bd2 {[%clk 0:01:16.6]} 21... f5 {[%clk 0:02:23.3]} 22. b3 {[%clk
0:01:11.6]} 22... Nf6 {[%clk 0:02:19.5]} 23. Ba5+ {[%clk 0:01:08.3]} 23... Kd7
{[%clk 0:02:18.4]} 24. Rc2 {[%clk 0:01:07.3]} 24... g5 {[%clk 0:02:18.1]} 25.
Bc3 {[%clk 0:00:55.4]} 25... g4 {[%clk 0:02:08]} 26. hxg4 {[%clk 0:00:54.2]}
26... Rxg4 {[%clk 0:02:08.9]} 27. g3 {[%clk 0:00:45.5]} 27... Rh2 {[%clk
0:02:02.1]} 28. Be1 {[%clk 0:00:42.5]} 28... Rg6 {[%clk 0:01:57.8]} 29. f3
{[%clk 0:00:37.5]} 29... Rh1 {[%clk 0:01:56.4]} 30. Kc1 {[%clk 0:00:33.8]} 30...
Rgh6 {[%clk 0:01:46.6]} 31. Re2 {[%clk 0:00:27.3]} 31... Rf1 {[%clk 0:01:38.7]}
32. Bf2 {[%clk 0:00:27.3]} 32... Rhh1 {[%clk 0:01:35.8]} 33. Ree1 {[%clk
0:00:22.6]} 33... Rxe1 {[%clk 0:01:36.1]} 34. Rxe1 {[%clk 0:00:22.5]} 34... Rh2
{[%clk 0:01:36.1]} 35. Re2 {[%clk 0:00:18.9]} 35... g5 {[%clk 0:01:36.3]} 36.
Kd2 {[%clk 0:00:16.9]} 36... g4 {[%clk 0:01:36.1]} 37. f4 {[%clk 0:00:15.9]}
37... Ne4+ {[%clk 0:01:36]} 38. Ke1 {[%clk 0:00:15.4]} 38... Rh1+ {[%clk
0:01:36.3]} 0-1

[Event "*** SCC Grand Prix: Titled Tuesday Blitz"]
[Site "Chess.com"]
[Date "2020.09.08"]
[Round "4"]
[White "kosya4ok"]
[Black "woodpusher52"]
[Result "1-0"]
[WhiteElo "2676"]
[BlackElo "2472"]
[TimeControl "180+1"]
[EndTime "10:38:32 PDT"]
[Termination "kosya4ok won on time"]

1. e4 {[%clk 0:02:58.8]} 1... e5 {[%clk 0:02:59.4]} 2. Nf3 {[%clk 0:02:55.6]}
2... Nc6 {[%clk 0:02:59.5]} 3. Bb5 {[%clk 0:02:55.9]} 3... Nf6 {[%clk
0:02:49.8]} 4. Nc3 {[%clk 0:02:47.3]} 4... Bb4 {[%clk 0:02:47.7]} 5. O-O {[%clk
0:02:40]} 5... O-O {[%clk 0:02:40.7]} 6. d3 {[%clk 0:02:37.5]} 6... d6 {[%clk
0:02:38.2]} 7. Bg5 {[%clk 0:02:37.3]} 7... Bxc3 {[%clk 0:02:32.3]} 8. bxc3
{[%clk 0:02:36.2]} 8... h6 {[%clk 0:02:32.8]} 9. Bh4 {[%clk 0:02:32.3]} 9... g5
{[%clk 0:02:30.8]} 10. Nxg5 {[%clk 0:02:27.5]} 10... hxg5 {[%clk 0:02:31.1]} 11.
Bxg5 {[%clk 0:02:28.1]} 11... d5 {[%clk 0:01:32.4]} 12. f4 {[%clk 0:01:54.3]}
12... dxe4 {[%clk 0:01:19.8]} 13. Bxc6 {[%clk 0:01:39.4]} 13... bxc6 {[%clk
0:01:14.5]} 14. fxe5 {[%clk 0:01:35.4]} 14... Nh7 {[%clk 0:00:42.7]} 15. Bxd8
{[%clk 0:01:23.4]} 15... Rxd8 {[%clk 0:00:43.6]} 16. Qh5 {[%clk 0:01:22.7]}
16... Be6 {[%clk 0:00:40.8]} 17. Rf6 {[%clk 0:01:22.8]} 17... exd3 {[%clk
0:00:16.8]} 18. Rh6 {[%clk 0:01:16.1]} 18... dxc2 {[%clk 0:00:16.8]} 19. Rxh7
{[%clk 0:01:08.1]} 19... Rd1+ {[%clk 0:00:16.5]} 20. Kf2 {[%clk 0:01:01.8]}
20... Rd2+ {[%clk 0:00:08.7]} 21. Ke3 {[%clk 0:00:58.4]} 1-0

[Event "*** SCC Grand Prix: Titled Tuesday Blitz"]
[Site "Chess.com"]
[Date "2020.09.08"]
[Round "4"]
[White "poppy73"]
[Black "Schandenfreude"]
[Result "0-1"]
[WhiteElo "2258"]
[BlackElo "2518"]
[TimeControl "180+1"]
[EndTime "10:38:35 PDT"]
[Termination "Schandenfreude won by resignation"]

1. e4 {[%clk 0:03:00.9]} 1... c5 {[%clk 0:02:59.5]} 2. Nf3 {[%clk 0:03:00.8]}
2... d6 {[%clk 0:02:59.6]} 3. d4 {[%clk 0:03:01.3]} 3... cxd4 {[%clk 0:02:59.8]}
4. Nxd4 {[%clk 0:03:02.2]} 4... Nf6 {[%clk 0:03:00.1]} 5. Nc3 {[%clk 0:03:02.7]}
5... a6 {[%clk 0:03:00.5]} 6. h3 {[%clk 0:03:02.7]} 6... g6 {[%clk 0:02:59.2]}
7. g4 {[%clk 0:02:59.4]} 7... Bg7 {[%clk 0:02:57.7]} 8. Bg2 {[%clk 0:02:59.6]}
8... O-O {[%clk 0:02:55.5]} 9. O-O {[%clk 0:02:57.9]} 9... Nc6 {[%clk
0:02:44.1]} 10. Be3 {[%clk 0:02:57.4]} 10... Bd7 {[%clk 0:02:42.2]} 11. Nxc6
{[%clk 0:02:56]} 11... Bxc6 {[%clk 0:02:42]} 12. g5 {[%clk 0:02:49.7]} 12... Nd7
{[%clk 0:02:39.5]} 13. f4 {[%clk 0:02:44.1]} 13... Rc8 {[%clk 0:02:27]} 14. Qd2
{[%clk 0:02:26.9]} 14... Re8 {[%clk 0:02:10.4]} 15. Rad1 {[%clk 0:02:22.3]}
15... Qa5 {[%clk 0:02:09.8]} 16. a3 {[%clk 0:01:34]} 16... Bxc3 {[%clk
0:02:00.4]} 17. bxc3 {[%clk 0:01:31.4]} 17... Bb5 {[%clk 0:01:58.3]} 18. Bd4
{[%clk 0:00:42.2]} 18... Bxf1 {[%clk 0:01:45.4]} 19. Bxf1 {[%clk 0:00:42.3]}
19... e5 {[%clk 0:01:41.9]} 20. fxe5 {[%clk 0:00:41.4]} 20... Nxe5 {[%clk
0:01:36.9]} 21. Bxe5 {[%clk 0:00:32.8]} 21... Qxe5 {[%clk 0:01:31.7]} 22. c4
{[%clk 0:00:24]} 22... Qxe4 {[%clk 0:01:15.1]} 23. Qxd6 {[%clk 0:00:22.9]} 23...
Qe3+ {[%clk 0:01:04.9]} 24. Kh1 {[%clk 0:00:23.2]} 24... Qxg5 {[%clk 0:01:02]}
25. Bg2 {[%clk 0:00:17.2]} 25... Rcd8 {[%clk 0:00:59]} 0-1

[Event "*** SCC Grand Prix: Titled Tuesday Blitz"]
[Site "Chess.com"]
[Date "2020.09.08"]
[Round "4"]
[White "Margency"]
[Black "Rap_woyska"]
[Result "1-0"]
[WhiteElo "2662"]
[BlackElo "2350"]
[TimeControl "180+1"]
[EndTime "10:38:40 PDT"]
[Termination "Margency won on time"]

1. e4 {[%clk 0:03:00.9]} 1... e6 {[%clk 0:02:59]} 2. d4 {[%clk 0:02:59.9]} 2...
d5 {[%clk 0:02:57.5]} 3. Nc3 {[%clk 0:03:00.4]} 3... Nf6 {[%clk 0:02:56]} 4. Bg5
{[%clk 0:02:59.8]} 4... dxe4 {[%clk 0:02:54.3]} 5. Nxe4 {[%clk 0:02:59.7]} 5...
Be7 {[%clk 0:02:53.2]} 6. Bxf6 {[%clk 0:02:59.4]} 6... gxf6 {[%clk 0:02:54]} 7.
Qd3 {[%clk 0:02:57.7]} 7... Nc6 {[%clk 0:02:51.6]} 8. O-O-O {[%clk 0:02:55.6]}
8... Nb4 {[%clk 0:02:14.8]} 9. Qb3 {[%clk 0:02:54.9]} 9... Qd5 {[%clk
0:02:13.7]} 10. Nc3 {[%clk 0:02:52.1]} 10... Qxb3 {[%clk 0:02:09.6]} 11. axb3
{[%clk 0:02:53]} 11... c6 {[%clk 0:02:06]} 12. g3 {[%clk 0:02:41.4]} 12... Nd5
{[%clk 0:02:02]} 13. Bg2 {[%clk 0:02:39.3]} 13... a5 {[%clk 0:02:00]} 14. Nge2
{[%clk 0:02:37.5]} 14... Bd7 {[%clk 0:01:55.4]} 15. Kb1 {[%clk 0:02:36.6]} 15...
b5 {[%clk 0:01:54.1]} 16. Rhe1 {[%clk 0:02:25.4]} 16... O-O {[%clk 0:01:27]} 17.
Nc1 {[%clk 0:02:18.7]} 17... Nxc3+ {[%clk 0:01:14.8]} 18. bxc3 {[%clk
0:02:18.3]} 18... a4 {[%clk 0:01:15.7]} 19. b4 {[%clk 0:02:14.4]} 19... Bd6
{[%clk 0:01:12.5]} 20. Nd3 {[%clk 0:02:12.2]} 20... Rac8 {[%clk 0:01:10.6]} 21.
Rd2 {[%clk 0:02:09.8]} 21... Kg7 {[%clk 0:01:03]} 22. f4 {[%clk 0:02:05.8]}
22... f5 {[%clk 0:00:59.3]} 23. Ne5 {[%clk 0:02:04.3]} 23... Bxe5 {[%clk
0:00:49.4]} 24. Rxe5 {[%clk 0:01:56.5]} 24... Rc7 {[%clk 0:00:29.2]} 25. Rc5
{[%clk 0:01:52.3]} 25... Rfc8 {[%clk 0:00:04.9]} 26. Kb2 {[%clk 0:01:51]} 26...
Kf6 {[%clk 0:00:02.3]} 27. c4 {[%clk 0:01:45.5]} 27... Ke7 {[%clk 0:00:03.1]}
28. Ka3 {[%clk 0:01:37.6]} 28... Kd6 {[%clk 0:00:02.6]} 29. c3 {[%clk 0:01:29]}
29... h5 {[%clk 0:00:03.5]} 30. Bf3 {[%clk 0:01:23.5]} 1-0

[Event "*** SCC Grand Prix: Titled Tuesday Blitz"]
[Site "Chess.com"]
[Date "2020.09.08"]
[Round "4"]
[White "mmaks007"]
[Black "Manukyan_Artak"]
[Result "1-0"]
[WhiteElo "2250"]
[BlackElo "2401"]
[TimeControl "180+1"]
[EndTime "10:38:41 PDT"]
[Termination "mmaks007 won by resignation"]

1. e4 {[%clk 0:03:00.9]} 1... c5 {[%clk 0:02:59.2]} 2. Nf3 {[%clk 0:02:57.7]}
2... a6 {[%clk 0:02:58.9]} 3. c4 {[%clk 0:02:54.2]} 3... Nc6 {[%clk 0:02:58.4]}
4. d4 {[%clk 0:02:52.8]} 4... cxd4 {[%clk 0:02:58.1]} 5. Nxd4 {[%clk 0:02:53.7]}
5... g6 {[%clk 0:02:58.6]} 6. Nc3 {[%clk 0:02:53.3]} 6... Bg7 {[%clk 0:02:58.2]}
7. Be3 {[%clk 0:02:52.2]} 7... d6 {[%clk 0:02:58.1]} 8. Qd2 {[%clk 0:02:48.9]}
8... Nf6 {[%clk 0:02:53.1]} 9. Be2 {[%clk 0:02:48]} 9... Ng4 {[%clk 0:02:48.3]}
10. Bxg4 {[%clk 0:02:47.4]} 10... Bxg4 {[%clk 0:02:46.8]} 11. f3 {[%clk
0:02:47.7]} 11... Bd7 {[%clk 0:02:45.1]} 12. O-O {[%clk 0:02:47.4]} 12... O-O
{[%clk 0:02:43.8]} 13. Rac1 {[%clk 0:02:30.1]} 13... Rc8 {[%clk 0:02:40.5]} 14.
Nd5 {[%clk 0:02:23.5]} 14... Be6 {[%clk 0:02:26.5]} 15. b3 {[%clk 0:02:16.5]}
15... Bxd5 {[%clk 0:02:24.8]} 16. exd5 {[%clk 0:02:14.7]} 16... Nxd4 {[%clk
0:02:20.8]} 17. Bxd4 {[%clk 0:02:13.7]} 17... Bxd4+ {[%clk 0:02:15.8]} 18. Qxd4
{[%clk 0:02:14.6]} 18... Qc7 {[%clk 0:02:13]} 19. h4 {[%clk 0:02:02.2]} 19...
Qc5 {[%clk 0:02:12.6]} 20. Rcd1 {[%clk 0:01:57.5]} 20... Qxd4+ {[%clk
0:02:11.4]} 21. Rxd4 {[%clk 0:01:58.4]} 21... b5 {[%clk 0:02:11.3]} 22. Re1
{[%clk 0:01:58.6]} 22... bxc4 {[%clk 0:02:09.4]} 23. Rxc4 {[%clk 0:01:54.3]}
23... Rxc4 {[%clk 0:02:08.5]} 24. bxc4 {[%clk 0:01:55.2]} 24... Re8 {[%clk
0:02:06.9]} 25. Kf2 {[%clk 0:01:47.6]} 25... Kf8 {[%clk 0:02:06.2]} 26. Ke3
{[%clk 0:01:47.2]} 26... Rb8 {[%clk 0:02:06]} 27. Re2 {[%clk 0:01:44.6]} 27...
h5 {[%clk 0:02:01]} 28. Kd4 {[%clk 0:01:43.4]} 28... Ke8 {[%clk 0:02:00.9]} 29.
g4 {[%clk 0:01:39.3]} 29... hxg4 {[%clk 0:02:00.3]} 30. fxg4 {[%clk 0:01:39.7]}
30... Kd7 {[%clk 0:02:01.2]} 31. h5 {[%clk 0:01:38.6]} 31... gxh5 {[%clk
0:02:00.9]} 32. gxh5 {[%clk 0:01:39.5]} 32... Rh8 {[%clk 0:02:00.7]} 33. Rh2
{[%clk 0:01:39.6]} 33... Ke8 {[%clk 0:01:48]} 34. c5 {[%clk 0:01:30.5]} 34...
dxc5+ {[%clk 0:01:47.4]} 35. Kxc5 {[%clk 0:01:30.2]} 35... Kf8 {[%clk
0:01:47.5]} 36. h6 {[%clk 0:01:29.9]} 36... f6 {[%clk 0:01:42.1]} 37. Kb6 {[%clk
0:01:29.5]} 37... Kf7 {[%clk 0:01:39.5]} 38. h7 {[%clk 0:01:22.4]} 38... Kg6
{[%clk 0:01:38.4]} 39. Kxa6 {[%clk 0:01:22.4]} 39... Rxh7 {[%clk 0:01:38.5]} 40.
Rxh7 {[%clk 0:01:20.4]} 40... Kxh7 {[%clk 0:01:39.4]} 41. Kb5 {[%clk 0:01:18.5]}
41... f5 {[%clk 0:01:39.1]} 42. a4 {[%clk 0:01:11.2]} 42... f4 {[%clk 0:01:37]}
43. Kc4 {[%clk 0:01:09.2]} 43... Kg6 {[%clk 0:01:37.1]} 44. a5 {[%clk 0:01:07]}
44... Kf5 {[%clk 0:01:36.3]} 45. Kd3 {[%clk 0:00:53]} 45... Kg4 {[%clk
0:01:11.7]} 46. Ke2 {[%clk 0:00:51]} 46... Kg3 {[%clk 0:01:11.1]} 47. Kf1 {[%clk
0:00:50.3]} 1-0

[Event "*** SCC Grand Prix: Titled Tuesday Blitz"]
[Site "Chess.com"]
[Date "2020.09.08"]
[Round "4"]
[White "Tenamu"]
[Black "Pertinhez76"]
[Result "1-0"]
[WhiteElo "2372"]
[BlackElo "2089"]
[TimeControl "180+1"]
[EndTime "10:38:41 PDT"]
[Termination "Tenamu won by resignation"]

1. d4 {[%clk 0:03:00.9]} 1... Nf6 {[%clk 0:02:53.7]} 2. Nc3 {[%clk 0:03:00.8]}
2... d5 {[%clk 0:02:51.7]} 3. Bf4 {[%clk 0:02:58.9]} 3... c5 {[%clk 0:02:49.3]}
4. e3 {[%clk 0:02:56.7]} 4... cxd4 {[%clk 0:02:42.2]} 5. exd4 {[%clk 0:02:57.6]}
5... Nc6 {[%clk 0:02:41.6]} 6. Nb5 {[%clk 0:02:56.9]} 6... e5 {[%clk 0:02:40.2]}
7. Bxe5 {[%clk 0:02:55.1]} 7... Qa5+ {[%clk 0:02:27.8]} 8. c3 {[%clk 0:02:52.6]}
8... Nxe5 {[%clk 0:02:25.5]} 9. dxe5 {[%clk 0:02:53.5]} 9... Nd7 {[%clk
0:02:18.2]} 10. Qxd5 {[%clk 0:02:51.2]} 10... Qb6 {[%clk 0:02:09]} 11. Bc4
{[%clk 0:02:43.6]} 11... Qg6 {[%clk 0:01:55.1]} 12. Nc7+ {[%clk 0:02:40.9]}
12... Kd8 {[%clk 0:01:56]} 13. Nxa8 {[%clk 0:02:40.3]} 13... Bc5 {[%clk
0:01:50.3]} 14. Ne2 {[%clk 0:02:20.1]} 14... Re8 {[%clk 0:01:45.9]} 15. f4
{[%clk 0:02:15.8]} 15... Qc2 {[%clk 0:01:29.4]} 16. Rd1 {[%clk 0:01:26.3]} 16...
Be3 {[%clk 0:01:10.8]} 17. Bb5 {[%clk 0:01:15.3]} 17... Re7 {[%clk 0:01:07.3]}
18. Qd3 {[%clk 0:01:04]} 18... Qxd3 {[%clk 0:01:06.8]} 19. Rxd3 {[%clk
0:01:02.8]} 19... Bxf4 {[%clk 0:01:03.7]} 20. Bxd7 {[%clk 0:00:58.2]} 20... Bxd7
{[%clk 0:01:00.2]} 21. Nxf4 {[%clk 0:00:57.3]} 21... Rxe5+ {[%clk 0:01:00.5]}
22. Kf2 {[%clk 0:00:57]} 22... Rf5 {[%clk 0:00:59.7]} 23. Ke3 {[%clk 0:00:56.6]}
23... Kc8 {[%clk 0:00:53]} 24. Rhd1 {[%clk 0:00:54.7]} 24... Re5+ {[%clk
0:00:49.9]} 25. Kf2 {[%clk 0:00:52.8]} 25... Re7 {[%clk 0:00:48.5]} 26. Nd5
{[%clk 0:00:48.9]} 26... Re6 {[%clk 0:00:48.7]} 27. Ndb6+ {[%clk 0:00:46.8]}
27... axb6 {[%clk 0:00:48.1]} 28. Rxd7 {[%clk 0:00:47.7]} 28... Kb8 {[%clk
0:00:45.1]} 29. Rd8+ {[%clk 0:00:47.2]} 29... Ka7 {[%clk 0:00:45.3]} 30. Nc7
{[%clk 0:00:48.1]} 30... Rf6+ {[%clk 0:00:44.3]} 31. Ke3 {[%clk 0:00:47.3]}
31... b5 {[%clk 0:00:44.8]} 32. Ra8+ {[%clk 0:00:46.2]} 32... Kb6 {[%clk
0:00:44.6]} 33. Nd5+ {[%clk 0:00:47.1]} 33... Kc5 {[%clk 0:00:44.5]} 34. Nxf6
{[%clk 0:00:48]} 34... gxf6 {[%clk 0:00:44.5]} 35. b4+ {[%clk 0:00:44.8]} 1-0